[Event "Doeberl Cup 2022"]
[Site "Canberra"]
[Date "2022.04.17"]
[Round "7.2"]
[White "Fernandez, Daniel Howard"]
[Black "Sardana, Rishi"]
[Result "0-1"]
[ECO "D36"]
[WhiteElo "2487"]
[BlackElo "2461"]
[Annotator "TA"]
[PlyCount "104"]
[EventDate "2022.04.14"]
[EventType "swiss"]
[EventCountry "AUS"]
[SourceTitle "playchess.com"]
[Source "ChessBase"]
[SourceQuality "1"]
[TimeControl "5400+30"]

{[%evp 24,104,0,0,6,0,0,0,0,0,0,0,30,0,24,0,0,0,0,0,0,-10,-6,-7,-6,-2,0,-19,22,11,13,-78,-80,-89,0,-30,-19,-25,-25,-16,-19,-220,-212,-214,-223,-227,-235,-231,-223,-225,-202,-234,-193,-234,-187,-186,-186,-344,-340,-398,-395,-384,-345,-496,-486,-478,-488,-472,-405,-342,-356,-674,-649,-712,-430,-4133,-695,-2298,-2404,-1681,-1637,-916,-865]} 1. d4 {[%emt 0:06:49]} d5 {[%emt 0:00:17]} 2. c4 {[%emt 0:00:16]} e6 {[%emt 0:00:06]} 3. Nc3 {[%emt 0:00:06]} Nf6 {[%emt 0:00:18]} 4. cxd5 {[%emt 0:00:30]} exd5 {[%emt 0:00:30]} 5. Bg5 {[%emt 0:00:30]} c6 {[%emt 0:00:30]} 6. e3 {[%emt 0:00:30]} Be7 {[%emt 0:00:30]} 7. Bd3 {[%emt 0:00:30]} O-O {[%emt 0:00:30]} 8. Nge2 {[%emt 0:00:30]} Nbd7 {[%emt 0:00:30][%cal Bb8d7,Bd7f8,Bf8e6][%mdl 32]} 9. Qc2 {[%emt 0:00:30]} Re8 {[%emt 0:00:30]} 10. O-O {[%emt 0:00:30]} g6 {[%emt 0:00:30]} 11. Rae1 {[%emt 0:00:30]} Nf8 {[%emt 0:00:30]} 12. f3 {[%emt 0:00:30]} Ne6 {[%emt 0:00:30]} 13. Bh4 {[%emt 0:23:38]} b5 $1 {[%emt 0:00:00][%mdl 4] outshines the older 13...Ng7. D36: Queen's Gambit Declined: Exchange Variation: Main line (5 Bg5 c6 6 Qc2).} 14. Nf4 {[%emt 0:03:39] [#]} Nxf4 $146 {[%emt 0:01:53]} ({Predecessor:} 14... Ng7 15. Nce2 Qb6 16. e4 dxe4 17. fxe4 Ng4 18. Bxe7 Rxe7 19. Qd2 Ne5 20. Kh1 Nxd3 21. Qxd3 {½-½ (76) Blohberger,F (2434)-Gonda,L (2532) Hungary 2019}) 15. exf4 {[%emt 0:00:03]} Nh5 {[%emt 0:01:29][%csl LRf4,LRh4] The position is equal.} 16. Rxe7 {[%emt 0:16:59]} Rxe7 {[%emt 0:00:12]} 17. f5 {[%emt 0:00:30]} Qe8 {[%emt 0:00:30]} 18. Qd2 {[%emt 0:00:30]} (18. fxg6 {keeps more tension.} hxg6 19. Bxg6 fxg6 20. Bxe7 Qxe7 21. Qxg6+ Ng7 22. Qxc6 Qb7 23. Qxd5+ Qxd5 24. Nxd5 Be6 25. Nc7) 18... Re3 {[%emt 0:00:30]} ({Don't take} 18... Bxf5 19. Bxf5 b4 20. Na4 $16 (20. Bxe7 Qxe7 21. Nxd5 cxd5 $11)) 19. Nd1 {[%emt 0:00:30]} (19. g4 $5 {[%cal Rg4h5]} Ng7 20. f6 Rxd3 21. Qxd3 $14) 19... Rxd3 {[%emt 0:00:30]} 20. Qxd3 {[%emt 0:00:30] [#] Threatens to win with g4.} Bxf5 {[%emt 0:00:30]} 21. Qd2 {[%emt 0:00:30] Black must now prevent g4.} Ng7 {[%emt 0:00:30]} 22. g4 {[%emt 0:00:30]} Be6 {[%emt 0:00:30]} 23. Nf2 {[%emt 0:15:47]} Qf8 {[%emt 0:56:44]} 24. Rc1 {[%emt 0:04:43]} Rc8 {[%emt 0:04:17]} 25. Qa5 {[%emt 0:00:30]} Ne8 {[%emt 0:00:30]} 26. Bg3 {[%emt 0:00:30]} h5 {[%emt 0:00:30]} 27. gxh5 {[%emt 0:00:30]} (27. h3 $11) 27... Qh6 $17 {[%emt 0:00:30]} 28. Re1 {[%emt 0:00:30]} Qxh5 {[%emt 0:00:30]} ({Black should play} 28... gxh5 $17 29. Qc3 Bf5) 29. Kg2 {[%emt 0:00:30]} Ng7 {[%emt 0:00:30][%cal Be8g7,Bg7f5,Bf5d4][%mdl 32]} 30. Qa6 {[%emt 0:00:30][%cal Oe1e6] Strongly threatening Rxe6!} Rf8 {[%emt 0:00:30]} 31. Qxc6 {[%emt 0:00:30]} Nf5 {[%emt 0:00:30][%cal Oh5f3] Black wants to play ...Qxf3+!} 32. Re5 $2 {[%emt 0:00:30] [#] Now White is beyond hope.} (32. Qxb5 $11 {and White is okay.} Nxd4 33. Qd3) 32... Qxf3+ $1 $19 {[%emt 0:00:30][%mdl 512]} 33. Kxf3 {[%emt 0:00:30]} Nxd4+ {[%emt 0:00:30]} 34. Kg2 {[%emt 0:00:30]} Nxc6 {[%emt 0:00:30]} 35. Re1 {[%emt 0:07:29]} d4 {[%emt 0:15:08]} 36. a3 {[%emt 0:00:30]} Rd8 {[%emt 0:00:30]} 37. Bh4 {[%emt 0:00:00]} Rd6 {[%emt 0:04:25]} 38. Bg3 {[%emt 0:02:22]} Bd5+ {[%emt 0:00:45]} 39. Kg1 {[%emt 0:00:15]} Re6 {[%emt 0:00:10][%cal Re6e1]} 40. Rc1 {[%emt 0:00:02]} (40. Rxe6 {is a better defense.} Bxe6 41. Nd3) 40... Bc4 {[%emt 0:03:07]} 41. a4 {[%emt 0:02:02]} d3 {[%emt 0:01:43]} 42. axb5 {[%emt 0:00:30]} Bxb5 {[%emt 0:00:30] ...d2 is the strong threat.} 43. Rc5 {[%emt 0:00:30]} (43. Rd1 {might work better.} Nb4 44. Bc7) 43... Nd4 {[%emt 0:00:30]} 44. Rc8+ {[%emt 0:00:30]} Kg7 {[%emt 0:00:30]} 45. Rd8 {[%emt 0:00:30]} Ne2+ {[%emt 0:00:30]} 46. Kg2 {[%emt 0:00:30]} Nxg3 {[%emt 0:00:30]} 47. hxg3 {[%emt 0:00:30][%mdl 4096] Endgame KRB-KRN} (47. Kxg3 Re3+ 48. Kf4) 47... Re2 {[%emt 0:00:30] Black is clearly winning.} 48. b4 {[%emt 0:00:30]} Rb2 {[%emt 0:00:30] And now ...Bc6+ would win.} 49. Rd4 {[%emt 0:00:30]} (49. g4 $142) 49... Kf6 {[%emt 0:00:30]} (49... Bc6+ $142 50. Kg1 Rb1+ 51. Kh2 Rf1 52. Rxd3 Rxf2+ 53. Kh3 f5) 50. Kf3 {[%emt 0:00:30]} Bc6+ {[%emt 0:00:30]} 51. Ke3 {[%emt 0:00:30]} Re2+ {[%emt 0:00:30]} 52. Kxd3 {[%emt 0:00:30]} Bb5+ {[%emt 0:00:00] Weighted Error Value: White=0.68/Black=0.39} ({Weaker is} 52... Rxf2 53. Rd6+ Ke5 54. Rxc6 $17) 0-1

[Event "Doeberl Cup 2022"]
[Site "Canberra"]
[Date "2022.04.17"]
[Round "7.3"]
[White "Kuybokarov, Temur"]
[Black "Wallis, Christopher"]
[Result "1-0"]
[ECO "C67"]
[WhiteElo "2576"]
[BlackElo "2337"]
[Annotator "TA"]
[PlyCount "53"]
[EventDate "2022.04.14"]
[EventType "swiss"]
[EventCountry "AUS"]
[SourceTitle "playchess.com"]
[Source "ChessBase"]
[SourceQuality "1"]
[TimeControl "5400+30"]

{[%evp 16,53,29,9,10,-6,0,0,0,0,8,0,0,0,0,0,0,0,12,10,31,28,31,40,79,86,114,112,115,111,141,120,137,139,137,136,216,216,216,170]} 1. e4 {[%emt 0:09:37]} e5 {[%emt 0:00:12]} 2. Nf3 {[%emt 0:00:07]} Nc6 {[%emt 0:00:11]} 3. Bb5 {[%emt 0:00:10]} Nf6 {[%emt 0:00:10]} 4. O-O {[%emt 0:00:27]} Nxe4 {[%emt 0:00:10]} 5. d4 {[%emt 0:00:12]} Nd6 {[%emt 0:00:13]} 6. Bxc6 {[%emt 0:00:12]} dxc6 {[%emt 0:00:10]} 7. dxe5 {[%emt 0:00:10]} Nf5 {[%emt 0:00:10]} 8. Qxd8+ {[%emt 0:00:14]} Kxd8 {[%emt 0:00:10]} 9. h3 {[%emt 0:00:49]} Be7 {[%emt 0:00:20] Recently 9...Bd7 got a lot of attention. C67: Ruy Lopez: Berlin Defence: 4 0-0 Nxe4.} 10. Bf4 $5 {[%emt 0:04:31][%mdl 4] [#] A promising side line.} Nh4 $146 {[%emt 0:15:58]} ({Predecessor:} 10... Bd7 11. Nc3 b6 12. Rad1 Kc8 13. Ne4 h6 14. g4 Nh4 15. Nxh4 Bxh4 16. Bg3 Be7 17. f4 {½-½ (30) Gungl,T (2331)-Anagnostopoulos,K (2319) Anogia 2018}) 11. Nxh4 {[%emt 0:01:26]} Bxh4 {[%emt 0:00:10] The position is equal.} 12. Nd2 {[%emt 0:00:08]} Ke8 {[%emt 0:12:22]} 13. g4 {[%emt 0:15:13]} h5 {[%emt 0:20:07]} 14. f3 {[%emt 0:06:43]} b6 {[%emt 0:05:50]} 15. Kg2 {[%emt 0:07:40]} Be6 {[%emt 0:06:23]} 16. Rad1 {[%emt 0:09:00]} Rc8 {[%emt 0:08:28]} 17. b3 {[%emt 0:03:44]} (17. Ne4 {with more complications.} Ke7 18. b3 a5 19. a4) 17... c5 {[%emt 0:03:22]} (17... Ke7 {keeps more tension.} 18. Ne4 a5 19. Nc3 c5) 18. Ne4 {[%emt 0:04:55][%cal Bd2e4,Be4c3,Bc3b5,Bb5a7,Ba7c6][%mdl 32]} hxg4 {[%emt 0:11:54]} 19. hxg4 {[%emt 0:00:15] [#] Strongly threatening Rh1.} f5 {[%emt 0:01:12]} 20. exf6 $1 {[%emt 0:02:00]} gxf6 {[%emt 0:01:33]} 21. Nc3 {[%emt 0:09:27] &Bianco is much more active.} f5 {[%emt 0:04:55]} 22. Nb5 {[%emt 0:00:41][%csl LRa7,LRc7]} Bd8 {[%emt 0:04:41]} 23. Nxa7 {[%emt 0:03:00]} Ra8 {[%emt 0:01:04] [#]} 24. Rfe1 $1 $36 {[%emt 0:01:02][%mdl 2048] White has strong initiative. White is clearly better.} Kf7 {[%emt 0:00:33]} 25. Nc6 {[%emt 0:00:07] Ne5+ is the strong threat.} Bf6 {[%emt 0:01:39]} (25... fxg4 $16 26. Ne5+ (26. Nxd8+ Rhxd8 27. Rxd8 Rxd8 $11) (26. Rxd8 Rhxd8 27. Nxd8+ Rxd8 $11) 26... Kg7) 26. g5 $18 {[%emt 0:00:16]} ({Not} 26. Bxc7 Rxa2 27. Kg1 Rxc2 $11) 26... Rhg8 {[%emt 0:00:16]} 27. Kf2 {[%emt 0:00:20] Weighted Error Value: White=0.04 (flawless) /Black=0.13 (very precise)} 1-0

[Event "Doeberl Cup 2022"]
[Site "Canberra"]
[Date "2022.04.17"]
[Round "7.4"]
[White "Ikeda, Junta"]
[Black "Winkelman, Albert"]
[Result "1-0"]
[ECO "C55"]
[WhiteElo "2457"]
[BlackElo "2257"]
[Annotator "TA"]
[PlyCount "174"]
[EventDate "2022.04.14"]
[EventType "swiss"]
[EventCountry "AUS"]
[SourceTitle "playchess.com"]
[Source "ChessBase"]
[SourceQuality "1"]
[TimeControl "5400+30"]

{[%evp 10,174,30,28,35,31,25,16,31,21,43,31,58,55,55,47,57,25,52,57,86,37,49,34,46,-10,-10,-3,0,0,0,9,18,16,8,18,12,6,189,187,170,177,164,157,169,174,179,117,97,100,162,171,295,0,0,-119,-119,-122,-47,-50,-46,-46,-39,-91,-88,-203,-90,-129,-127,-106,-114,-98,-99,-106,-99,-131,-137,-118,-78,-62,0,0,0,-63,11,-44,-43,-70,-68,-110,-120,-100,-105,-119,-118,-117,-107,-109,-85,-127,-91,-107,-93,-113,-100,-100,-97,-99,-97,-115,-67,-131,-95,-177,-186,-152,-143,-218,-204,-186,-189,-189,-196,-199,-193,-197,-189,-188,-56,-64,-58,-88,-25,-23,-29,-25,-35,-29,0,-60,-41,-61,-29,-38,0,0,0,0,0,0,0,0,0,0,0,0,410,398,358,391,344,324,897,904,853,838,1935]} 1. e4 {[%emt 0:00:04]} e5 {[%emt 0:00:13]} 2. Nf3 {[%emt 0:00:04]} Nc6 {[%emt 0:00:11]} 3. Bc4 {[%emt 0:00:10]} Nf6 {[%emt 0:00:14]} 4. d3 {[%emt 0:00:04]} h6 {[%emt 0:00:18]} 5. O-O {[%emt 0:00:17]} d6 {[%emt 0:00:16]} 6. a4 {[%emt 0:00:14][%cal Ba2a4,Ba4a5,Ba5a6][%mdl 32]} g5 {[%emt 0:07:56] C55: Two Knights: 4 d3, 4 d4 exd4 5 e5 and Max Lange Attack.} 7. Nc3 {[%emt 0:00:52]} Bg7 {[%emt 0:00:59]} 8. a5 {[%emt 0:10:14]} O-O {[%emt 0:05:36] [#] The position is equal.} 9. Re1 $146 {[%emt 0:13:51]} ({Predecessor:} 9. Nd5 Nxd5 10. Bxd5 a6 11. Nd2 Ne7 12. Bb3 Kh7 13. Nc4 f5 14. exf5 Bxf5 15. Ne3 {½-½ (53) Svidler,P (2723)-Oparin,G (2652) Chess.com INT 2020}) 9... Ne7 {[%emt 0:03:27]} 10. d4 {[%emt 0:01:57]} Ng6 {[%emt 0:00:56]} 11. a6 {[%emt 0:03:21]} b6 {[%emt 0:17:38]} 12. d5 {[%emt 0:00:58]} Bd7 {[%emt 0:03:07]} 13. Bb5 {[%emt 0:11:56]} Rc8 {[%emt 0:02:59]} 14. Nd2 {[%emt 0:05:29]} Qe8 {[%emt 0:02:31]} 15. Bxd7 {[%emt 0:13:59]} (15. Bf1 $16) 15... Qxd7 $14 {[%emt 0:00:13]} 16. Nc4 {[%emt 0:03:33]} c6 {[%emt 0:01:25] And now ...cxd5 would win.} 17. dxc6 {[%emt 0:11:48]} (17. Ne3 $1 $14) 17... Qxc6 $11 {[%emt 0:01:28]} 18. Na3 {[%emt 0:09:47]} (18. Nxd6 Rfd8 19. Ncb5 Rxd6 $1 {[%mdl 512]} 20. Qxd6 (20. Nxd6 Rd8 $17) 20... Qxb5 $17) 18... Rcd8 {[%emt 0:10:59]} 19. Nab5 {[%emt 0:03:44]} Rd7 {[%emt 0:02:18]} 20. Qe2 {[%emt 0:01:48]} d5 {[%emt 0:05:59]} 21. exd5 {[%emt 0:01:25]} Nxd5 {[%emt 0:00:10]} 22. Nxd5 {[%emt 0:01:04]} Qxd5 {[%emt 0:00:12]} 23. Be3 {[%emt 0:02:41]} Rfd8 $2 {[%emt 0:03:17] [#]} (23... Qa8 $11) 24. Nxa7 $1 $18 {[%emt 0:02:12][%mdl 512]} Rxa7 {[%emt 0:00:05]} 25. Bxb6 {[%emt 0:00:39]} Nf4 {[%emt 0:00:07][%csl Gf4][%cal Rd5g2]} 26. Qf1 {[%emt 0:00:42]} Rda8 {[%emt 0:00:13][%cal Oa7a6]} 27. Bxa7 {[%emt 0:00:27]} Rxa7 {[%emt 0:00:07]} 28. g3 {[%emt 0:00:29]} (28. b4 $1 $18) 28... Ne6 $16 {[%emt 0:00:13]} 29. c3 $1 {[%emt 0:00:37] Prevents Nd4.} g4 {[%emt 0:00:07]} (29... e4 $16) 30. Red1 $18 {[%emt 0:00:28]} Qc6 {[%emt 0:00:33]} (30... Qb3 $142 31. Qe2 h5) 31. Qd3 $2 {[%emt 0:00:33]} (31. b4 $1 $18) 31... Ng5 $1 $11 {[%emt 0:03:23]} 32. Qd8+ {[%emt 0:00:22]} (32. b4 $11 {keeps the balance.} Nh3+ 33. Kf1 Qh1+ 34. Ke2) 32... Bf8 $17 {[%emt 0:02:36] Strongly threatening ...Qf3.} 33. Qd5 {[%emt 0:00:30]} Rxa6 {[%emt 0:00:43]} (33... Qf6 $17 34. Kf1 Rxa6 35. Rxa6 Qxa6+ 36. Qd3 Qa4) 34. Qxc6 $15 {[%emt 0:00:30]} Rxc6 {[%emt 0:00:10]} 35. Ra8 {[%emt 0:00:31]} Kg7 {[%emt 0:00:13]} 36. Rdd8 {[%emt 0:00:34]} (36. Kf1 $15) 36... Be7 $17 {[%emt 0:01:40]} 37. Rac8 {[%emt 0:00:32]} (37. Rd5 $17 {keeps fighting.}) 37... Re6 {[%emt 0:00:45]} (37... Rb6 $19 {is more deadly.} 38. Rg8+ Kh7) 38. Rd5 {[%emt 0:00:26]} Ra6 {[%emt 0:00:17] ( -> ...Ra1+)} 39. Kf1 {[%emt 0:00:29]} Ra1+ {[%emt 0:00:44]} 40. Ke2 {[%emt 0:00:03]} Nf3 {[%emt 0:00:38]} 41. Rd1 {[%emt 0:00:31] Against Re1+} Ra2 {[%emt 0:01:28]} 42. Rb8 {[%emt 0:00:57][%cal Oh2h3]} Ba3 {[%emt 0:00:54]} (42... Nxh2 43. Rd7 Bg5 44. Rbb7 $11) 43. Rb1 {[%emt 0:00:31]} Bc5 {[%emt 0:00:07]} (43... Nxh2 $6 44. Ra8 Rxb2+ 45. Rxb2 Bxb2 46. Kd2 $11) 44. Rb5 {[%emt 0:00:27]} Ba7 {[%emt 0:01:35]} (44... Bf8 $15) 45. Rb3 $1 $11 {[%emt 0:00:33]} Bc5 {[%emt 0:01:35] Against Ra3} ({Black should play} 45... Ng5 $11) 46. Rb5 $15 {[%emt 0:00:09]} Bd4 {[%emt 0:01:52]} 47. Rb3 {[%emt 0:00:49] [#]} (47. Rb4 $11) 47... Kf6 $1 {[%emt 0:03:27][%cal Of6f5]} 48. h3 {[%emt 0:01:09] [#]} (48. Ra3 Rxa3) 48... h5 $1 {[%emt 0:00:24][%cal Of6f5]} 49. hxg4 {[%emt 0:00:00] [#]} (49. h4 Ke6) 49... hxg4 {[%emt 0:00:06]} 50. Rd1 {[%emt 0:00:00]} (50. Ra3 Rxa3) 50... Bc5 {[%emt 0:00:36]} 51. Rb5 {[%emt 0:00:24]} Ba3 {[%emt 0:00:57]} 52. Rb1 {[%emt 0:00:21]} Kf5 {[%emt 0:00:53]} 53. Kd3 {[%emt 0:00:52]} Be7 {[%emt 0:00:54]} 54. Rd1 {[%emt 0:00:50]} Ra8 {[%emt 0:00:45]} 55. Ke2 {[%emt 0:00:29]} Ra7 {[%emt 0:00:33] Prevents Rb7.} 56. Rbd5 {[%emt 0:00:31]} Rb7 {[%emt 0:00:34]} 57. b4 {[%emt 0:00:17]} Ke6 {[%emt 0:01:29] Prevents Rd7. Threatens to win with ...Rc7.} 58. Ra5 {[%emt 0:00:10]} Rc7 $1 {[%emt 0:00:53]} 59. Ra3 {[%emt 0:00:49]} Kf5 {[%emt 0:01:01]} (59... Ng5 $17 60. Kd3 f5 61. Ra6+ Kf7) 60. Rb3 {[%emt 0:00:39]} ({White should try} 60. Rda1 $15) 60... Ra7 {[%emt 0:00:28]} 61. Rdb1 {[%emt 0:00:27]} (61. Rb2 $17 {was forced.}) 61... Bd8 {[%emt 0:00:55]} 62. R3b2 {[%emt 0:00:36]} Ke4 {[%emt 0:01:29]} 63. c4 {[%emt 0:00:32]} (63. Rd1 $17 {might work better.} Bb6 64. Kf1) 63... Nd4+ {[%emt 0:00:27]} 64. Kf1 {[%emt 0:00:13] [#]} Kd3 $1 {[%emt 0:00:46]} 65. c5 {[%emt 0:00:20] [#]} Kc4 $1 {[%emt 0:00:24]} 66. Re1 {[%emt 0:00:28]} f6 {[%emt 0:00:46]} 67. Rbb1 {[%emt 0:00:44]} Kb5 {[%emt 0:00:43]} 68. Kg2 {[%emt 0:00:40]} Bc7 {[%emt 0:01:07]} (68... Rg7 $19 {Hoping for ...Bc7.} 69. Rh1 f5) 69. Rh1 $1 {[%emt 0:00:31]} Nc6 {[%emt 0:02:19]} 70. Rh7 {[%emt 0:00:32]} e4 {[%emt 0:02:58]} (70... Bb8 $17 71. Rh4 Rg7) 71. Re1 $11 {[%emt 0:00:33]} f5 {[%emt 0:03:31]} 72. Rf7 {[%emt 0:00:13]} Nd4 {[%emt 0:01:22]} ({Don't play} 72... Nxb4 73. Rxf5 Nc6 74. Rxe4 $16) 73. Rd1 {[%emt 0:00:07]} Kc4 {[%emt 0:01:05]} 74. Rd7 {[%emt 0:00:29]} (74. c6 $11) 74... Nf3 {[%emt 0:01:59]} 75. Rf7 {[%emt 0:01:07]} e3 {[%emt 0:00:11]} (75... Kxb4 $5 {[%cal Re4e3]} 76. Rf1 Ne5 77. Rxf5 Kxc5 $17) 76. Rc1+ $1 {[%emt 0:00:26]} Kd3 {[%emt 0:02:10][%cal Oa7a2] White must now prevent ...Ra2!} ({Much weaker is} 76... Kxb4 $6 77. Rxf5 Ra3 78. Rxf3 gxf3+ 79. Kxf3) 77. Rd7+ {[%emt 0:00:16]} ({Don't go for} 77. Rxf5 $2 Ra2 78. Rxf3 gxf3+ 79. Kxf3 Rxf2+ 80. Kg4 e2 $19) 77... Ke4 {[%emt 0:00:27][%cal Oa7a2]} 78. Re7+ {[%emt 0:00:14]} Ne5 {[%emt 0:00:38][%cal Oa7a2]} 79. Re1 {[%emt 0:00:06]} Kd5 {[%emt 0:00:30]} 80. Rxe3 {[%emt 0:00:11]} Nf3 $1 {[%emt 0:00:25]} 81. Rf7 {[%emt 0:01:38]} Ra1 {[%emt 0:00:36][%csl Gf3][%cal Ra1g1]} 82. Rxf5+ {[%emt 0:00:25]} Kc4 $2 {[%emt 0:00:34][%mdl 8192]} (82... Be5 $11 83. Rfxf3 gxf3+ 84. Kxf3 Rb1) 83. Re4+ $18 {[%emt 0:00:40]} Kb5 {[%emt 0:00:32][%csl Gf3][%cal Ra1g1]} 84. Rxg4 {[%emt 0:00:20]} Ne1+ {[%emt 0:00:11]} 85. Kh3 {[%emt 0:00:17]} Nd3 $2 {[%emt 0:00:31]} (85... Ra8 86. Re4 Rh8+ 87. Rh4 Rc8 88. c6+ Kb6) 86. Rg7 {[%emt 0:00:40]} Be5 {[%emt 0:00:50]} 87. Rd7 {[%emt 0:00:16]} Nxb4 {[%emt 0:01:07] Both players deserved the win here.  Weighted Error Value: White=0.20 (precise) /Black=0.24 (precise)} 1-0

[Event "Doeberl Cup 2022"]
[Site "Canberra"]
[Date "2022.04.17"]
[Round "7.5"]
[White "Lane, Gary W"]
[Black "Johansen, Darryl K"]
[Result "1/2-1/2"]
[ECO "B80"]
[WhiteElo "2332"]
[BlackElo "2385"]
[Annotator "TA"]
[PlyCount "34"]
[EventDate "2022.04.14"]
[EventType "swiss"]
[EventCountry "AUS"]
[SourceTitle "playchess.com"]
[Source "ChessBase"]
[SourceQuality "1"]
[TimeControl "5400+30"]

{[%evp 11,34,49,55,50,42,30,58,41,63,58,73,13,10,0,16,-29,-22,-22,-3,-16,33,-20,0,0,0]} 1. e4 {[%emt 0:01:36]} c5 {[%emt 0:00:39]} 2. Nf3 {[%emt 0:00:04]} e6 {[%emt 0:00:11]} 3. d4 {[%emt 0:00:13]} cxd4 {[%emt 0:00:09]} 4. Nxd4 {[%emt 0:00:04]} Nc6 {[%emt 0:00:09]} 5. Nc3 {[%emt 0:00:45]} d6 {[%emt 0:00:20]} 6. Be3 {[%emt 0:02:15]} Nf6 {[%emt 0:00:13]} 7. Qe2 {[%emt 0:00:54] B80: Sicilian Scheveningen: 6 g3 and 6 Be3, including English Attack.} e5 {[%emt 0:03:26]} 8. Nb3 {[%emt 0:02:23]} Be7 {[%emt 0:01:02]} 9. f3 {[%emt 0:01:08] [#] White is slightly better.} a6 $146 {[%emt 0:10:57]} ({Predecessor:} 9... O-O 10. O-O-O a5 11. a3 Be6 12. Nc5 Qc8 13. Nxe6 fxe6 14. g3 Nd8 15. f4 Qc6 {0-1 (49) Stefansson,H (2573)-Rublevsky,S (2645) Warsaw 2005}) 10. Qf2 {[%emt 0:29:15]} Be6 {[%emt 0:08:28]} 11. Bb6 {[%emt 0:03:32]} ({White should try} 11. O-O-O $16) 11... Qb8 $11 {[%emt 0:01:32]} 12. O-O-O {[%emt 0:03:22]} Nd7 {[%emt 0:00:29]} 13. Na4 {[%emt 0:02:37]} Nxb6 {[%emt 0:01:15]} 14. Nxb6 {[%emt 0:06:11]} Qa7 $1 {[%emt 0:00:18] [#] aiming for ...Bd8.} 15. Qg1 {[%emt 0:00:04]} Rd8 {[%emt 0:03:12]} (15... Bd8 $11 16. Nc4 (16. Nxa8 Bg5+ 17. Kb1 Be3 $17) 16... Bg5+ 17. Kb1 Qxg1 18. Rxg1 O-O-O) 16. g4 {[%emt 0:01:54]} (16. Kb1 $14) 16... Bxb3 {[%emt 0:19:17]} 17. axb3 {[%emt 0:15:38]} Nd4 {[%emt 0:00:29] Weighted Error Value: White=0.23 (precise) /Black=0.13 (very precise)} 1/2-1/2